Departmental Area,Entity,Payment Date,Expense type,Expense Area,Supplier Name,Payment Reference, Invoice Distribution Amount ,Description,Supplier Type,Expenditure Type,,
UK Statistics Family,Office for National Statistics,02/08/2021,Telecoms,IT Operations,Bt Global Services,207072,"28,800.20",Telecommunications,Large,Programme Expenditure,,
UK Statistics Family,Office for National Statistics,02/08/2021,Telecoms,IT Operations,Bt Global Services,207073,"47,707.24",Telecommunications,Large,Programme Expenditure,,
UK Statistics Family,Office for National Statistics,02/08/2021,Exp - Purchase Of Goods/Services - IT Contractual Services,Digital Delivery,Xma Limited,207074,"44,118.00",Costs Associated with Mobile Devices,Large,Programme Expenditure,,
UK Statistics Family,Office for National Statistics,02/08/2021,Exp - Purchase Of Goods/Services - Contractors,Security Operations,La International,207078,"9,611.64",Information Management Services,SME,Programme Expenditure,,
UK Statistics Family,Office for National Statistics,02/08/2021,Exp - Purchase Of Goods/Services - Contractors,Data Architecture,La International,207078,"4,485.43",Information Management Services,SME,Programme Expenditure,,
UK Statistics Family,Office for National Statistics,02/08/2021,Exp - Purchase Of Goods/Services - Contractors,Data Architecture,La International,207078,"40,624.82",Information Management Services,SME,Programme Expenditure,,
UK Statistics Family,Office for National Statistics,02/08/2021,Exp - Purchase Of Goods/Services - Contractors,Data As A Service,La International,207078,"8,009.64",Information Management Services,SME,Programme Expenditure,,
UK Statistics Family,Office for National Statistics,02/08/2021,"ICT Outsourcing, Maintenance And Support",IT Operations,CTS (Cloud Technology Solutions Ltd),207087,"30,857.40",DST Infrastructure Preparation,Large,Programme Expenditure,,
UK Statistics Family,Office for National Statistics,02/08/2021,Exp - Short-Term Contract & Agency Staff - Full Cost,Census CCS Data Collection,Talent International,207092,"4,228.99",Information Management Services,SME,Programme Expenditure,,
UK Statistics Family,Office for National Statistics,02/08/2021,Exp - Short-Term Contract & Agency Staff - Full Cost,Census CCS Data Collection,Talent International,207092,"20,106.15",Information Management Services,SME,Programme Expenditure,,
UK Statistics Family,Office for National Statistics,02/08/2021,Exp - Purchase Of Goods/Services - Contractors,Covid Infection Survey,Talent International,207092,"2,995.00",Information Management Services,SME,Programme Expenditure,,
UK Statistics Family,Office for National Statistics,02/08/2021,Exp - Purchase Of Goods/Services - Contractors,Digital Publishing,Talent International,207092,-672,Information Management Services,SME,Programme Expenditure,,
UK Statistics Family,Office for National Statistics,02/08/2021,Exp - Short-Term Contract & Agency Staff - Full Cost,Strategy And Engagement,Talent International,207092,"3,813.78",Information Management Services,SME,Programme Expenditure,,
UK Statistics Family,Office for National Statistics,02/08/2021,Exp - Purchase Of Goods And Services Consultants,Business Architecture Transformation And Statistical Strategy,Talent International,207092,"30,960.00",Information Management Services,SME,Programme Expenditure,,
UK Statistics Family,Office for National Statistics,02/08/2021,Exp - Short-Term Contract & Agency Staff - Full Cost,Data Architecture,Talent International,207092,"2,720.71",Information Management Services,SME,Programme Expenditure,,
UK Statistics Family,Office for National Statistics,02/08/2021,Exp - Purchase Of Goods/Services - Contractors,Data Capability,Parity Resources Limited,207094,8017.03,Information Management Services,Large,Programme Expenditure,,
UK Statistics Family,Office for National Statistics,02/08/2021,Exp - Purchase Of Goods/Services - Contractors,Business Architecture,Parity Resources Limited,207094,"2,249.35",Information Management Services,Large,Programme Expenditure,,
UK Statistics Family,Office for National Statistics,02/08/2021,Exp - Short-Term Contract & Agency Staff - Full Cost,Census CCS Data Collection,Parity Resources Limited,207094,785.88,Information Management Services,Large,Programme Expenditure,,
UK Statistics Family,Office for National Statistics,02/08/2021,Exp - Short-Term Contract & Agency Staff - Full Cost,Census CCS Data Collection,Parity Resources Limited,207094,775.26,Information Management Services,Large,Programme Expenditure,,
UK Statistics Family,Office for National Statistics,02/08/2021,Exp - Purchase Of Goods/Services - Contractors,Programme Delivery,Parity Resources Limited,207094,"3,310.50",Information Management Services,Large,Programme Expenditure,,
UK Statistics Family,Office for National Statistics,02/08/2021,Exp - Purchase Of Goods/Services - Contractors,Covid Infection Survey,Parity Resources Limited,207094,"2,993.80",Information Management Services,Large,Programme Expenditure,,
UK Statistics Family,Office for National Statistics,02/08/2021,Exp - Short-Term Contract & Agency Staff - Full Cost,Recruitment ,Parity Resources Limited,207094,"1,465.20",Information Management Services,Large,Programme Expenditure,,
UK Statistics Family,Office for National Statistics,02/08/2021,Exp - Short-Term Contract & Agency Staff - Full Cost,Recruitment ,Parity Resources Limited,207094,1465.2,Information Management Services,Large,Programme Expenditure,,
UK Statistics Family,Office for National Statistics,02/08/2021,Exp - Purchase Of Goods/Services - Contractors,Security Advisory,Parity Resources Limited,207094,"3,075.84",Information Management Services,Large,Programme Expenditure,,
UK Statistics Family,Office for National Statistics,02/08/2021,Exp - Short-Term Contract & Agency Staff - Full Cost,Data Architecture,Parity Resources Limited,207094,"2,197.80",Information Management Services,Large,Programme Expenditure,,
UK Statistics Family,Office for National Statistics,02/08/2021,Exp - Purchase Of Goods/Services - Contractors,Data Architecture,Parity Resources Limited,207094,"2,153.09",Information Management Services,Large,Programme Expenditure,,
UK Statistics Family,Office for National Statistics,02/08/2021,Exp - Purchase Of Goods/Services - Contractors,Data Architecture,Parity Resources Limited,207094,"17,602.68",Information Management Services,Large,Programme Expenditure,,
UK Statistics Family,Office for National Statistics,02/08/2021,Exp - Purchase Of Goods/Services - Contractors,Digital Delivery,Parity Resources Limited,207094,"2,723.40",Information Management Services,Large,Programme Expenditure,,
UK Statistics Family,Office for National Statistics,02/08/2021,Exp - Short-Term Contract & Agency Staff - Full Cost,Social Surveys Division,Parity Resources Limited,207094,586.08,Information Management Services,Large,Programme Expenditure,,
UK Statistics Family,Office for National Statistics,02/08/2021,Exp - Purchase Of Goods/Services - Contractors,Business Architecture,LA FOSSE ASSOCIATES LIMITED,207095,15600,Information Management Services,Large,Programme Expenditure,,
UK Statistics Family,Office for National Statistics,02/08/2021,Exp - Purchase Of Goods/Services - Contractors,Business Architecture,LA FOSSE ASSOCIATES LIMITED,207095,"7,200.00",Information Management Services,Large,Programme Expenditure,,
UK Statistics Family,Office for National Statistics,02/08/2021,Exp - Purchase Of Goods/Services - Contractors,Business Architecture,LA FOSSE ASSOCIATES LIMITED,207095,"7,200.00",Information Management Services,Large,Programme Expenditure,,
UK Statistics Family,Office for National Statistics,03/08/2021,Hospitality,Property Services,BaxterStorey,207178,"27,197.72",Caterring Services,Large,Programme Expenditure,,
UK Statistics Family,Office for National Statistics,03/08/2021,Exp - Purchase Of Goods And Services Consultants,Digital Publishing,Methods Business & Digital Technology Ltd,207181,"253,443.00",Information Management Services,Large,Programme Expenditure,,
UK Statistics Family,Office for National Statistics,03/08/2021,Exp - Purchase Of Goods/Services - IT Contractual Services,IT Operations,Methods Business & Digital Technology Ltd,207181,24840,Information Management Services,Large,Programme Expenditure,,
UK Statistics Family,Office for National Statistics,03/08/2021,Exp - Purchase Of Goods/Services - Incentive Payments,Covid Infection Survey,Sodexo Motivation Solutions U.K. ltd,207184,68936.6,Survey Response Incentive Vouchers,Large,Programme Expenditure,,
UK Statistics Family,Office for National Statistics,03/08/2021,Surveys,Covid Infection Survey,IQVIA Limited,207186,"729,943.61",Statistical Services,Large,Programme Expenditure,,
UK Statistics Family,Office for National Statistics,04/08/2021,Exp - Purchase Of Goods/Services - Incentive Payments,Survey Management,Park Retail Ltd,207191,"33,630.40",Survey Response Incentive Vouchers,Large,Programme Expenditure,,
UK Statistics Family,Office for National Statistics,04/08/2021,Exp - Purchase Of Goods/Services - Incentive Payments,Survey Management,Park Retail Ltd,207191,"2,379.92",Survey Response Incentive Vouchers,Large,Programme Expenditure,,
UK Statistics Family,Office for National Statistics,04/08/2021,Exp - Purchase Of Goods/Services - Incentive Payments,Survey Management,Park Retail Ltd,207191,1061.47,Survey Response Incentive Vouchers,Large,Programme Expenditure,,
UK Statistics Family,Office for National Statistics,04/08/2021,Exp - Purchase Of Goods/Services - Incentive Payments,Survey Management,Park Retail Ltd,207191,"1,013.39",Survey Response Incentive Vouchers,Large,Programme Expenditure,,
UK Statistics Family,Office for National Statistics,04/08/2021,Exp - Purchase Of Goods And Services Consultants,Digital Delivery,Xma Limited,207197,"5,512.50",Costs Associated with Mobile Devices,Large,Programme Expenditure,,
UK Statistics Family,Office for National Statistics,04/08/2021,Exp - Purchase Of Goods/Services - IT Contractual Services,Digital Delivery,Xma Limited,207197,"168,489.06",Costs Associated with Mobile Devices,Large,Programme Expenditure,,
UK Statistics Family,Office for National Statistics,04/08/2021,Postage,Survey Processing Centre,DHL Parcel Ltd,207199,"40,333.48",Postage,Large,Programme Expenditure,,
UK Statistics Family,Office for National Statistics,04/08/2021,Exp - Purchase Of Goods/Services - Contractors,Data Architecture,La International,207202,"3,524.22",Information Management Services,SME,Programme Expenditure,,
UK Statistics Family,Office for National Statistics,04/08/2021,Exp - Purchase Of Goods/Services - Contractors,Data Architecture,La International,207202,"7,432.92",Information Management Services,SME,Programme Expenditure,,
UK Statistics Family,Office for National Statistics,04/08/2021,Exp - Purchase Of Goods/Services - Contractors,Data Architecture,La International,207202,"2,819.38",Information Management Services,SME,Programme Expenditure,,
UK Statistics Family,Office for National Statistics,04/08/2021,Exp - Purchase Of Goods/Services - Contractors,CLOUD ARCHITECTURE,La International,207202,23516.32,Information Management Services,SME,Programme Expenditure,,
UK Statistics Family,Office for National Statistics,04/08/2021,Surveys,Prices Division,Kantar UK Ltd,207207,205897,Statistical Services,Large,Programme Expenditure,,
UK Statistics Family,Office for National Statistics,04/08/2021,Exp - Purchase Of Goods/Services - IT Contractual Services,IT Operations,Methods Business & Digital Technology Ltd,207211,"38,400.00",Information Management Services,Large,Programme Expenditure,,
UK Statistics Family,Office for National Statistics,04/08/2021,Exp - Purchase Of Goods/Services - Incentive Payments,Covid Infection Survey,Sodexo Motivation Solutions U.K. ltd,207215,"1,098,330.48",Survey Response Incentive Vouchers,Large,Programme Expenditure,,
UK Statistics Family,Office for National Statistics,04/08/2021,Marketing & Media,Survey Management,Banner Group Ltd,207221,"69,324.00",Stationery,SME,Programme Expenditure,,
UK Statistics Family,Office for National Statistics,04/08/2021,Marketing & Media,Social Survey Transformation Newport,Banner Group Ltd,207221,"17,076.00",Stationery,SME,Programme Expenditure,,
UK Statistics Family,Office for National Statistics,05/08/2021,Exp - Short-Term Contract & Agency Staff - Full Cost,Census CCS Data Collection,Concept Information Technology Ltd T/A Concept Resourcing,207377,"6,236.71",Information Management Services,Large,Programme Expenditure,,
UK Statistics Family,Office for National Statistics,05/08/2021,Exp - Short-Term Contract & Agency Staff - Full Cost,Programme Other,Concept Information Technology Ltd T/A Concept Resourcing,207377,"3,147.05",Information Management Services,Large,Programme Expenditure,,
UK Statistics Family,Office for National Statistics,05/08/2021,Exp - Short-Term Contract & Agency Staff - Full Cost,Covid Infection Survey,Concept Information Technology Ltd T/A Concept Resourcing,207377,"3,606.03",Information Management Services,Large,Programme Expenditure,,
UK Statistics Family,Office for National Statistics,05/08/2021,Exp - Short-Term Contract & Agency Staff - Full Cost,Covid Infection Survey,Concept Information Technology Ltd T/A Concept Resourcing,207377,"17,800.31",Information Management Services,Large,Programme Expenditure,,
UK Statistics Family,Office for National Statistics,05/08/2021,Exp - Short-Term Contract & Agency Staff - Full Cost,Covid Infection Survey,Concept Information Technology Ltd T/A Concept Resourcing,207377,"5,410.18",Information Management Services,Large,Programme Expenditure,,
UK Statistics Family,Office for National Statistics,05/08/2021,Exp - Short-Term Contract & Agency Staff - Full Cost,Strategy And Engagement,Concept Information Technology Ltd T/A Concept Resourcing,207377,"4,955.68",Information Management Services,Large,Programme Expenditure,,
UK Statistics Family,Office for National Statistics,05/08/2021,Exp - Short-Term Contract & Agency Staff - Full Cost,Ask Business Services,Concept Information Technology Ltd T/A Concept Resourcing,207377,"2,949.94",Information Management Services,Large,Programme Expenditure,,
UK Statistics Family,Office for National Statistics,05/08/2021,Exp - Short-Term Contract & Agency Staff - Full Cost,Data Architecture,Concept Information Technology Ltd T/A Concept Resourcing,207377,"2,842.31",Information Management Services,Large,Programme Expenditure,,
UK Statistics Family,Office for National Statistics,05/08/2021,Exp - Short-Term Contract & Agency Staff - Full Cost,Prices Division,Concept Information Technology Ltd T/A Concept Resourcing,207377,"2,949.94",Information Management Services,Large,Programme Expenditure,,
UK Statistics Family,Office for National Statistics,05/08/2021,Exp - Short-Term Contract & Agency Staff - Full Cost,Prices Division,Concept Information Technology Ltd T/A Concept Resourcing,207377,"8,663.94",Information Management Services,Large,Programme Expenditure,,
UK Statistics Family,Office for National Statistics,05/08/2021,Exp - Short-Term Contract & Agency Staff - Full Cost,Prices Division,Concept Information Technology Ltd T/A Concept Resourcing,207377,"28,963.54",Information Management Services,Large,Programme Expenditure,,
UK Statistics Family,Office for National Statistics,05/08/2021,Exp - Purchase Of Goods/Services - Contractors,Tech Delivery Data As A Platform,Certes Computing Ltd,207383,"12,009.42",Information Management Services,SME,Programme Expenditure,,
UK Statistics Family,Office for National Statistics,05/08/2021,Exp - Purchase Of Goods/Services - Contractors,Digital Delivery,Certes Computing Ltd,207383,"15,211.93",Information Management Services,SME,Programme Expenditure,,
UK Statistics Family,Office for National Statistics,05/08/2021,End User Software And Hardware,Covid Infection Survey,Computacenter (Uk) Limited,207386,222.68,Software Licenses,Large,Programme Expenditure,,
UK Statistics Family,Office for National Statistics,05/08/2021,Specialist User Software And Hardware,Security Operations,Computacenter (Uk) Limited,207386,"66,699.01",Software Licenses,Large,Programme Expenditure,,
UK Statistics Family,Office for National Statistics,05/08/2021,"ICT Outsourcing, Maintenance And Support",Senior Management Team Design,Totalmobile Ltd,207389,"312,609.60",Software Licenses,SME,Programme Expenditure,,
UK Statistics Family,Office for National Statistics,05/08/2021,"ICT Outsourcing, Maintenance And Support",Consultancy Management,Totalmobile Ltd,207389,"39,000.00",Software Licenses,SME,Programme Expenditure,,
UK Statistics Family,Office for National Statistics,05/08/2021,Exp - Purchase Of Goods/Services - IT Contractual Services,IT Operations,CTS (Cloud Technology Solutions Ltd),207392,"130,956.00",DST Infrastructure Preparation,Large,Programme Expenditure,,
UK Statistics Family,Office for National Statistics,05/08/2021,EXP - PURCHASE OF GOODS/SERVICES -  NON IT CONTRACTUAL PAYMENTS,Covid Infection Survey,HH Associates Ltd,207393,"69,043.40",Print and Post Services,SME,Programme Expenditure,,
UK Statistics Family,Office for National Statistics,05/08/2021,Surveys,Covid Infection Survey,IQVIA Limited,207398,"1,880,472.20",Statistical Services,Large,Programme Expenditure,,
UK Statistics Family,Office for National Statistics,06/08/2021,Surveys,International Trade And Transactions,Mango Solutions,207400,16320,Information Management Services,SME,Programme Expenditure,,
UK Statistics Family,Office for National Statistics,06/08/2021,Surveys,International Trade And Transactions,Mango Solutions,207400,"41,643.74",Information Management Services,SME,Programme Expenditure,,
UK Statistics Family,Office for National Statistics,06/08/2021,EXP - PURCHASE OF GOODS/SERVICES -  NON IT CONTRACTUAL PAYMENTS,Productivity Research And Professional Development,La International,207408,"16,019.40",Information Management Services,SME,Programme Expenditure,,
UK Statistics Family,Office for National Statistics,06/08/2021,Exp - Purchase Of Goods/Services - Contractors,CLOUD ARCHITECTURE,La International,207408,"4,165.02",Information Management Services,SME,Programme Expenditure,,
UK Statistics Family,Office for National Statistics,06/08/2021,Exp - Purchase Of Goods/Services - Contractors,Tech Delivery Data As A Platform,La International,207408,"3,203.88",Information Management Services,SME,Programme Expenditure,,
UK Statistics Family,Office for National Statistics,06/08/2021,Exp - Purchase Of Goods/Services - Contractors,IT Applications,La International,207408,"12,046.56",Information Management Services,SME,Programme Expenditure,,
UK Statistics Family,Office for National Statistics,06/08/2021,Exp - Purchase Of Goods/Services - Contractors,Digital Delivery,La International,207408,"8,970.84",Information Management Services,SME,Programme Expenditure,,
UK Statistics Family,Office for National Statistics,06/08/2021,Exp - Purchase Of Goods/Services - Contractors,Digital Delivery,La International,207408,"6,920.32",Information Management Services,SME,Programme Expenditure,,
UK Statistics Family,Office for National Statistics,06/08/2021,Surveys,Prices Division,Kantar UK Ltd,207414,"205,897.00",Statistical Services,Large,Programme Expenditure,,
UK Statistics Family,Office for National Statistics,06/08/2021,Exp - Purchase Of Goods/Services - Contractors,Business Architecture,Parity Resources Limited,207415,"3,297.98",Information Management Services,Large,Programme Expenditure,,
UK Statistics Family,Office for National Statistics,06/08/2021,Exp - Short-Term Contract & Agency Staff - Full Cost,Census CCS Data Collection,Parity Resources Limited,207415,741.28,Information Management Services,Large,Programme Expenditure,,
UK Statistics Family,Office for National Statistics,06/08/2021,Exp - Short-Term Contract & Agency Staff - Full Cost,Census CCS Data Collection,Parity Resources Limited,207415,"4,976.80",Information Management Services,Large,Programme Expenditure,,
UK Statistics Family,Office for National Statistics,06/08/2021,Exp - Purchase Of Goods/Services - Contractors,Programme Delivery,Parity Resources Limited,207415,3310.5,Information Management Services,Large,Programme Expenditure,,
UK Statistics Family,Office for National Statistics,06/08/2021,Exp - Purchase Of Goods/Services - Contractors,Covid Infection Survey,Parity Resources Limited,207415,"2,993.80",Information Management Services,Large,Programme Expenditure,,
UK Statistics Family,Office for National Statistics,06/08/2021,Exp - Short-Term Contract & Agency Staff - Full Cost,Business Architecture Transformation And Statistical Strategy,Parity Resources Limited,207415,"1,616.16",Information Management Services,Large,Programme Expenditure,,
UK Statistics Family,Office for National Statistics,06/08/2021,Exp - Short-Term Contract & Agency Staff - Full Cost,Recruitment ,Parity Resources Limited,207415,"3,960.48",Information Management Services,Large,Programme Expenditure,,
UK Statistics Family,Office for National Statistics,06/08/2021,Exp - Short-Term Contract & Agency Staff - Full Cost,Recruitment ,Parity Resources Limited,207415,"1,465.20",Information Management Services,Large,Programme Expenditure,,
UK Statistics Family,Office for National Statistics,06/08/2021,Exp - Short-Term Contract & Agency Staff - Full Cost,Data Architecture,Parity Resources Limited,207415,"2,197.80",Information Management Services,Large,Programme Expenditure,,
UK Statistics Family,Office for National Statistics,06/08/2021,Exp - Purchase Of Goods/Services - Contractors,Data Architecture,Parity Resources Limited,207415,"8,612.35",Information Management Services,Large,Programme Expenditure,,
UK Statistics Family,Office for National Statistics,06/08/2021,Exp - Purchase Of Goods/Services - Contractors,Data Architecture,Parity Resources Limited,207415,7005.06,Information Management Services,Large,Programme Expenditure,,
UK Statistics Family,Office for National Statistics,06/08/2021,Exp - Purchase Of Goods/Services - Contractors,Digital Delivery,Parity Resources Limited,207415,"3,430.50",Information Management Services,Large,Programme Expenditure,,
UK Statistics Family,Office for National Statistics,06/08/2021,Exp - Purchase Of Goods/Services - Incentive Payments,Covid Infection Survey,Sodexo Motivation Solutions U.K. ltd,207416,1448699.77,Survey Response Incentive Vouchers,Large,Programme Expenditure,,
UK Statistics Family,Office for National Statistics,06/08/2021,Exp - Purchase Of Goods/Services - Contractors,Business Architecture,Malikshaw Interim & Executive,207419,14129.48,Information Management Services,SME,Programme Expenditure,,
UK Statistics Family,Office for National Statistics,06/08/2021,Exp - Purchase Of Goods/Services - Contractors,Testing,Malikshaw Interim & Executive,207419,"26,400.00",Information Management Services,SME,Programme Expenditure,,
UK Statistics Family,Office for National Statistics,06/08/2021,Exp - Short-Term Contract & Agency Staff - Full Cost,Census CCS Data Collection,Malikshaw Interim & Executive,207419,"5,851.59",Information Management Services,SME,Programme Expenditure,,
UK Statistics Family,Office for National Statistics,06/08/2021,Exp - Short-Term Contract & Agency Staff - Full Cost,Covid Infection Survey,Malikshaw Interim & Executive,207419,"4,889.78",Information Management Services,SME,Programme Expenditure,,
UK Statistics Family,Office for National Statistics,06/08/2021,Exp - Short-Term Contract & Agency Staff - Full Cost,Data Architecture,Malikshaw Interim & Executive,207419,"5,934.06",Information Management Services,SME,Programme Expenditure,,
UK Statistics Family,Office for National Statistics,06/08/2021,Exp - Short-Term Contract & Agency Staff - Full Cost,Data Architecture,Malikshaw Interim & Executive,207419,"11,465.04",Information Management Services,SME,Programme Expenditure,,
UK Statistics Family,Office for National Statistics,06/08/2021,Exp - Purchase Of Goods/Services - Contractors,Strategy And Architecture,Malikshaw Interim & Executive,207419,"22,690.01",Information Management Services,SME,Programme Expenditure,,
UK Statistics Family,Office for National Statistics,06/08/2021,Exp - Purchase Of Goods/Services - Contractors,Tech Delivery Legacy Sp,Malikshaw Interim & Executive,207419,"14,439.10",Information Management Services,SME,Programme Expenditure,,
UK Statistics Family,Office for National Statistics,06/08/2021,Exp - Purchase Of Goods/Services - Contractors,Tech Delivery Legacy Sp,Malikshaw Interim & Executive,207419,15840,Information Management Services,SME,Programme Expenditure,,
UK Statistics Family,Office for National Statistics,06/08/2021,Exp - Purchase Of Goods/Services - Contractors,Tech Delivery Legacy Sp,Malikshaw Interim & Executive,207419,"15,126.67",Information Management Services,SME,Programme Expenditure,,
UK Statistics Family,Office for National Statistics,06/08/2021,Exp - Purchase Of Goods/Services - Contractors,Digital Delivery,Malikshaw Interim & Executive,207419,2160,Information Management Services,SME,Programme Expenditure,,
UK Statistics Family,Office for National Statistics,06/08/2021,Exp - Purchase Of Goods/Services - Contractors,Data As A Service,Malikshaw Interim & Executive,207419,"15,126.67",Information Management Services,SME,Programme Expenditure,,
UK Statistics Family,Office for National Statistics,06/08/2021,Exp - Short-Term Contract & Agency Staff - Full Cost,Interviewer Management TU,Malikshaw Interim & Executive,207419,"6,203.34",Information Management Services,SME,Programme Expenditure,,
UK Statistics Family,Office for National Statistics,09/08/2021,Exp - Purchase Of Goods/Services - IT Contractual Services,Tech Delivery Data As A Platform,Kainos,207522,"31,954.20",Information Management Services,Large,Programme Expenditure,,
UK Statistics Family,Office for National Statistics,09/08/2021,Hosting,Tech Delivery Data As A Platform,Kainos,207522,"4,546.08",Information Management Services,Large,Programme Expenditure,,
UK Statistics Family,Office for National Statistics,09/08/2021,EXP - PURCHASE OF GOODS/SERVICES -  NON IT CONTRACTUAL PAYMENTS,Data Collection Service,Serco Ltd,207526,"794,885.57",Census Contact Centre,Large,Programme Expenditure,,
UK Statistics Family,Office for National Statistics,09/08/2021,Exp - Short-Term Contract & Agency Staff - Full Cost,Census CCS Data Collection,Talent International,207529,"4,661.29",Information Management Services,SME,Programme Expenditure,,
UK Statistics Family,Office for National Statistics,09/08/2021,Exp - Short-Term Contract & Agency Staff - Full Cost,Operations,Talent International,207529,"6,408.00",Information Management Services,SME,Programme Expenditure,,
UK Statistics Family,Office for National Statistics,09/08/2021,Exp - Purchase Of Goods/Services - Contractors,Consultancy Management,Talent International,207529,"12,938.40",Information Management Services,SME,Programme Expenditure,,
UK Statistics Family,Office for National Statistics,09/08/2021,Exp - Short-Term Contract & Agency Staff - Full Cost,Strategy And Engagement,Talent International,207529,"4,661.29",Information Management Services,SME,Programme Expenditure,,
UK Statistics Family,Office for National Statistics,09/08/2021,Exp - Purchase Of Goods And Services Consultants,Business Architecture Transformation And Statistical Strategy,Talent International,207529,"15,840.00",Information Management Services,SME,Programme Expenditure,,
UK Statistics Family,Office for National Statistics,09/08/2021,Exp - Purchase Of Goods And Services Consultants,Business Architecture Transformation And Statistical Strategy,Talent International,207529,2160,Information Management Services,SME,Programme Expenditure,,
UK Statistics Family,Office for National Statistics,09/08/2021,Exp - Purchase Of Goods/Services - Contractors,Finance,Talent International,207529,"16,500.00",Information Management Services,SME,Programme Expenditure,,
UK Statistics Family,Office for National Statistics,09/08/2021,Exp - Short-Term Contract & Agency Staff - Full Cost,Ask Business Services,Talent International,207529,1769.96,Information Management Services,SME,Programme Expenditure,,
UK Statistics Family,Office for National Statistics,09/08/2021,Exp - Short-Term Contract & Agency Staff - Full Cost,Data Architecture,Talent International,207529,"10,426.17",Information Management Services,SME,Programme Expenditure,,
UK Statistics Family,Office for National Statistics,09/08/2021,Exp - Short-Term Contract & Agency Staff - Full Cost,Survey Processing Centre,Talent International,207529,448.48,Information Management Services,SME,Programme Expenditure,,
UK Statistics Family,Office for National Statistics,09/08/2021,Exp - Short-Term Contract & Agency Staff - Full Cost,Social Surveys Division,Talent International,207529,"5,211.02",Information Management Services,SME,Programme Expenditure,,
UK Statistics Family,Office for National Statistics,09/08/2021,Exp - Purchase Of Goods/Services - Incentive Payments,Survey Management,Sodexo Motivation Solutions U.K. ltd,207531,"22,099.40",Survey Response Incentive Vouchers,Large,Programme Expenditure,,
UK Statistics Family,Office for National Statistics,09/08/2021,Exp - Purchase Of Goods/Services - Incentive Payments,Survey Management,Sodexo Motivation Solutions U.K. ltd,207531,"5,895.80",Survey Response Incentive Vouchers,Large,Programme Expenditure,,
UK Statistics Family,Office for National Statistics,09/08/2021,Exp - Purchase Of Goods/Services - Incentive Payments,Survey Management,Sodexo Motivation Solutions U.K. ltd,207531,"3,328.40",Survey Response Incentive Vouchers,Large,Programme Expenditure,,
UK Statistics Family,Office for National Statistics,09/08/2021,Exp - Purchase Of Goods/Services - Incentive Payments,Survey Management,Sodexo Motivation Solutions U.K. ltd,207531,2597,Survey Response Incentive Vouchers,Large,Programme Expenditure,,
UK Statistics Family,Office for National Statistics,09/08/2021,Exp - Purchase Of Goods/Services - Incentive Payments,Survey Management,Sodexo Motivation Solutions U.K. ltd,207531,126352.4,Survey Response Incentive Vouchers,Large,Programme Expenditure,,
UK Statistics Family,Office for National Statistics,09/08/2021,Exp - Purchase Of Goods/Services - Contractors,Business Architecture,LA FOSSE ASSOCIATES LIMITED,207532,85040,Information Management Services,Large,Programme Expenditure,,
UK Statistics Family,Office for National Statistics,09/08/2021,Exp - Purchase Of Goods/Services - Contractors,Business Architecture,LA FOSSE ASSOCIATES LIMITED,207532,"14,400.00",Information Management Services,Large,Programme Expenditure,,
UK Statistics Family,Office for National Statistics,09/08/2021,Exp - Purchase Of Goods/Services - Contractors,Business Architecture,LA FOSSE ASSOCIATES LIMITED,207532,"5,760.00",Information Management Services,Large,Programme Expenditure,,
UK Statistics Family,Office for National Statistics,09/08/2021,Exp - Purchase Of Goods/Services - Contractors,Business Architecture,LA FOSSE ASSOCIATES LIMITED,207532,"14,400.00",Information Management Services,Large,Programme Expenditure,,
UK Statistics Family,Office for National Statistics,09/08/2021,Exp - Purchase Of Goods/Services - Contractors,Business Architecture,LA FOSSE ASSOCIATES LIMITED,207532,"24,400.00",Information Management Services,Large,Programme Expenditure,,
UK Statistics Family,Office for National Statistics,09/08/2021,Exp - Purchase Of Goods/Services - Contractors,Operations,LA FOSSE ASSOCIATES LIMITED,207532,"11,220.00",Information Management Services,Large,Programme Expenditure,,
UK Statistics Family,Office for National Statistics,09/08/2021,Exp - Purchase Of Goods/Services - Contractors,Consultancy Management,LA FOSSE ASSOCIATES LIMITED,207532,"24,150.00",Information Management Services,Large,Programme Expenditure,,
UK Statistics Family,Office for National Statistics,09/08/2021,Exp - Purchase Of Goods/Services - Contractors,WIDER SURVEILLANCE STUDIES,LA FOSSE ASSOCIATES LIMITED,207532,"12,000.00",Information Management Services,Large,Programme Expenditure,,
UK Statistics Family,Office for National Statistics,09/08/2021,Exp - Purchase Of Goods/Services - Contractors,Data Architecture,LA FOSSE ASSOCIATES LIMITED,207532,"14,580.00",Information Management Services,Large,Programme Expenditure,,
UK Statistics Family,Office for National Statistics,09/08/2021,Exp - Purchase Of Goods/Services - Contractors,Data Architecture,LA FOSSE ASSOCIATES LIMITED,207532,13800,Information Management Services,Large,Programme Expenditure,,
UK Statistics Family,Office for National Statistics,09/08/2021,Exp - Purchase Of Goods/Services - Contractors,CLOUD ARCHITECTURE,LA FOSSE ASSOCIATES LIMITED,207532,"18,000.00",Information Management Services,Large,Programme Expenditure,,
UK Statistics Family,Office for National Statistics,09/08/2021,Exp - Purchase Of Goods/Services - Contractors,Tech Delivery Legacy Sp,LA FOSSE ASSOCIATES LIMITED,207532,"14,400.00",Information Management Services,Large,Programme Expenditure,,
UK Statistics Family,Office for National Statistics,09/08/2021,Exp - Purchase Of Goods/Services - Contractors,Data As A Service,LA FOSSE ASSOCIATES LIMITED,207532,"10,800.00",Information Management Services,Large,Programme Expenditure,,
UK Statistics Family,Office for National Statistics,10/08/2021,Exp - Short-Term Contract & Agency Staff - Full Cost,Census CCS Data Collection,Concept Information Technology Ltd T/A Concept Resourcing,207600,"1,474.97",Information Management Services,Large,Programme Expenditure,,
UK Statistics Family,Office for National Statistics,10/08/2021,Exp - Short-Term Contract & Agency Staff - Full Cost,Data Architecture,Concept Information Technology Ltd T/A Concept Resourcing,207600,2949.94,Information Management Services,Large,Programme Expenditure,,
UK Statistics Family,Office for National Statistics,10/08/2021,Exp - Purchase Of Goods/Services - IT Contractual Services,CDIO UNGP,Concept Information Technology Ltd T/A Concept Resourcing,207600,"14,400.00",Information Management Services,Large,Programme Expenditure,,
UK Statistics Family,Office for National Statistics,10/08/2021,Exp - Purchase Of Goods/Services - IT Contractual Services,Tech Delivery Legacy Sp,Concept Information Technology Ltd T/A Concept Resourcing,207600,"12,900.00",Information Management Services,Large,Programme Expenditure,,
UK Statistics Family,Office for National Statistics,10/08/2021,Exp - Short-Term Contract & Agency Staff - Full Cost,Business Outputs And Developments,Concept Information Technology Ltd T/A Concept Resourcing,207600,"4,029.74",Information Management Services,Large,Programme Expenditure,,
UK Statistics Family,Office for National Statistics,10/08/2021,Exp - Purchase Of Goods/Services - Contractors,Sustainability And Inequalities,La International,207604,"2,525.52",Information Management Services,SME,Programme Expenditure,,
UK Statistics Family,Office for National Statistics,10/08/2021,Exp - Purchase Of Goods/Services - Contractors,Data Architecture,La International,207604,"3,203.88",Information Management Services,SME,Programme Expenditure,,
UK Statistics Family,Office for National Statistics,10/08/2021,Exp - Purchase Of Goods/Services - Contractors,Tech Delivery Legacy Sp,La International,207604,"13,456.26",Information Management Services,SME,Programme Expenditure,,
UK Statistics Family,Office for National Statistics,10/08/2021,Exp - Purchase Of Goods/Services - Contractors,Tech Delivery Legacy Sp,La International,207604,"14,096.88",Information Management Services,SME,Programme Expenditure,,
UK Statistics Family,Office for National Statistics,10/08/2021,Exp - Purchase Of Goods/Services - Contractors,Data As A Service,La International,207604,"4,004.82",Information Management Services,SME,Programme Expenditure,,
UK Statistics Family,Office for National Statistics,10/08/2021,Exp - Short-Term Contract & Agency Staff - Full Cost,Census CCS Data Collection,Malikshaw Interim & Executive,207608,"4,507.22",Information Management Services,SME,Programme Expenditure,,
UK Statistics Family,Office for National Statistics,10/08/2021,Exp - Purchase Of Goods/Services - Contractors,Strategy And Architecture,Malikshaw Interim & Executive,207608,"13,117.20",Information Management Services,SME,Programme Expenditure,,
UK Statistics Family,Office for National Statistics,10/08/2021,Exp - Purchase Of Goods/Services - Contractors,Strategy And Architecture,Malikshaw Interim & Executive,207608,"8,250.91",Information Management Services,SME,Programme Expenditure,,
UK Statistics Family,Office for National Statistics,10/08/2021,Exp - Purchase Of Goods/Services - Contractors,Digital Delivery,Malikshaw Interim & Executive,207608,"15,126.67",Information Management Services,SME,Programme Expenditure,,
UK Statistics Family,Office for National Statistics,10/08/2021,Exp - Purchase Of Goods/Services - Contractors,Digital Delivery,Malikshaw Interim & Executive,207608,4813.03,Information Management Services,SME,Programme Expenditure,,
UK Statistics Family,Office for National Statistics,10/08/2021,Exp - Purchase Of Goods/Services - Contractors,Digital Delivery,Malikshaw Interim & Executive,207608,"13,680.00",Information Management Services,SME,Programme Expenditure,,
UK Statistics Family,Office for National Statistics,10/08/2021,EXP - PURCHASE OF GOODS/SERVICES -  NON IT CONTRACTUAL PAYMENTS,Data Collection Service,Leidos Innovations UK Limited,207609,"2,032,478.95",Questionnaire Management,Large,Programme Expenditure,,Karla to confirm what his is 
UK Statistics Family,Office for National Statistics,10/08/2021,EXP - PURCHASE OF GOODS/SERVICES -  NON IT CONTRACTUAL PAYMENTS,Covid Infection Survey,HH Associates Ltd,207611,"69,876.38",Print and Post Services,SME,Programme Expenditure,,
UK Statistics Family,Office for National Statistics,10/08/2021,Exp - Short-Term Contract & Agency Staff - Full Cost,2023 CENSUS DATA TRANSFORMATION,Talent International,207612,"1,849.82",Information Management Services,SME,Programme Expenditure,,
UK Statistics Family,Office for National Statistics,10/08/2021,Exp - Short-Term Contract & Agency Staff - Full Cost,Census CCS Data Collection,Talent International,207612,"5,075.26",Information Management Services,SME,Programme Expenditure,,
UK Statistics Family,Office for National Statistics,10/08/2021,Exp - Short-Term Contract & Agency Staff - Full Cost,Covid Infection Survey,Talent International,207612,"3,104.60",Information Management Services,SME,Programme Expenditure,,
UK Statistics Family,Office for National Statistics,10/08/2021,Exp - Purchase Of Goods/Services - Contractors,Covid Infection Survey,Talent International,207612,"2,995.00",Information Management Services,SME,Programme Expenditure,,
UK Statistics Family,Office for National Statistics,10/08/2021,Exp - Short-Term Contract & Agency Staff - Full Cost,Data Architecture,Talent International,207612,"2,212.44",Information Management Services,SME,Programme Expenditure,,
UK Statistics Family,Office for National Statistics,10/08/2021,Exp - Short-Term Contract & Agency Staff - Full Cost,Data Architecture,Talent International,207612,"3,687.42",Information Management Services,SME,Programme Expenditure,,
UK Statistics Family,Office for National Statistics,10/08/2021,Exp - Purchase Of Goods/Services - Contractors,Data Architecture,Talent International,207612,"10,560.00",Information Management Services,SME,Programme Expenditure,,
UK Statistics Family,Office for National Statistics,10/08/2021,Exp - Purchase Of Goods/Services - Contractors,Data Architecture,Talent International,207612,"17,793.60",Information Management Services,SME,Programme Expenditure,,
UK Statistics Family,Office for National Statistics,10/08/2021,Exp - Purchase Of Goods/Services - Contractors,Data Architecture,Talent International,207612,"2,156.40",Information Management Services,SME,Programme Expenditure,,
UK Statistics Family,Office for National Statistics,10/08/2021,Exp - Purchase Of Goods/Services - Contractors,Strategy And Architecture,Talent International,207612,"15,000.00",Information Management Services,SME,Programme Expenditure,,
UK Statistics Family,Office for National Statistics,10/08/2021,Exp - Purchase Of Goods/Services - Contractors,Tech Delivery Next Gen IT And Infrastructure,Talent International,207612,"3,000.00",Information Management Services,SME,Programme Expenditure,,
UK Statistics Family,Office for National Statistics,10/08/2021,Exp - Purchase Of Goods/Services - Contractors,Digital Delivery,Talent International,207612,"15,120.00",Information Management Services,SME,Programme Expenditure,,
UK Statistics Family,Office for National Statistics,10/08/2021,Exp - Purchase Of Goods/Services - Contractors,PPP Operations,Talent International,207612,"17,415.00",Information Management Services,SME,Programme Expenditure,,
UK Statistics Family,Office for National Statistics,10/08/2021,Exp - Short-Term Contract & Agency Staff - Full Cost,Social Surveys Division,Talent International,207612,"1,833.74",Information Management Services,SME,Programme Expenditure,,
UK Statistics Family,Office for National Statistics,10/08/2021,Exp - Purchase Of Goods/Services - Incentive Payments,Social Survey Transformation Newport,Sodexo Motivation Solutions U.K. ltd,207614,"407,289.60",Survey Response Incentive Vouchers,Large,Programme Expenditure,,
UK Statistics Family,Office for National Statistics,10/08/2021,EXP - PURCHASE OF GOODS/SERVICES -  NON IT CONTRACTUAL PAYMENTS,Data Collection Service,Good Things Foundation,207620,"69,671.26",Census Assisted Digital Services,SME,Programme Expenditure,,
UK Statistics Family,Office for National Statistics,11/08/2021,Hosting,IT Operations,Crown Hosting Data Centres Limited,207621,"45,995.58",Information Management Services,SME,Programme Expenditure,,
UK Statistics Family,Office for National Statistics,11/08/2021,Buildings Under Construction,Property Newport,Vinci Construction UK Limited,207623,"51,715.73",Facilities Mangement Services,Large,Programme Expenditure,,
UK Statistics Family,Office for National Statistics,11/08/2021,Exp - Short-Term Contract & Agency Staff - Full Cost,Business Change Support,Concept Information Technology Ltd T/A Concept Resourcing,207625,"4,953.31",Information Management Services,Large,Programme Expenditure,,
UK Statistics Family,Office for National Statistics,11/08/2021,Exp - Short-Term Contract & Agency Staff - Full Cost,Business Change Support,Concept Information Technology Ltd T/A Concept Resourcing,207625,"11,385.61",Information Management Services,Large,Programme Expenditure,,
UK Statistics Family,Office for National Statistics,11/08/2021,Exp - Short-Term Contract & Agency Staff - Full Cost,Business Change Support,Concept Information Technology Ltd T/A Concept Resourcing,207625,"3,425.28",Information Management Services,Large,Programme Expenditure,,
UK Statistics Family,Office for National Statistics,11/08/2021,Exp - Short-Term Contract & Agency Staff - Full Cost,Business Change Support,Concept Information Technology Ltd T/A Concept Resourcing,207625,"8,059.48",Information Management Services,Large,Programme Expenditure,,
UK Statistics Family,Office for National Statistics,11/08/2021,Exp - Short-Term Contract & Agency Staff - Full Cost,Business Change Support,Concept Information Technology Ltd T/A Concept Resourcing,207625,"3,828.25",Information Management Services,Large,Programme Expenditure,,
UK Statistics Family,Office for National Statistics,11/08/2021,Exp - Short-Term Contract & Agency Staff - Full Cost,Business Change Support,Concept Information Technology Ltd T/A Concept Resourcing,207625,3519.23,Information Management Services,Large,Programme Expenditure,,
UK Statistics Family,Office for National Statistics,11/08/2021,Exp - Short-Term Contract & Agency Staff - Full Cost,Business Change Support,Concept Information Technology Ltd T/A Concept Resourcing,207625,8275.34,Information Management Services,Large,Programme Expenditure,,
UK Statistics Family,Office for National Statistics,11/08/2021,Exp - Short-Term Contract & Agency Staff - Full Cost,Business Change Support,Concept Information Technology Ltd T/A Concept Resourcing,207625,604.46,Information Management Services,Large,Programme Expenditure,,
UK Statistics Family,Office for National Statistics,11/08/2021,Exp - Short-Term Contract & Agency Staff - Full Cost,Business Change Support,Concept Information Technology Ltd T/A Concept Resourcing,207625,"12,328.09",Information Management Services,Large,Programme Expenditure,,
UK Statistics Family,Office for National Statistics,11/08/2021,Exp - Short-Term Contract & Agency Staff - Full Cost,Business Architecture Transformation And Statistical Strategy,Concept Information Technology Ltd T/A Concept Resourcing,207625,"4,029.74",Information Management Services,Large,Programme Expenditure,,
UK Statistics Family,Office for National Statistics,11/08/2021,Exp - Short-Term Contract & Agency Staff - Full Cost,Data Architecture,Concept Information Technology Ltd T/A Concept Resourcing,207625,"3,398.42",Information Management Services,Large,Programme Expenditure,,
UK Statistics Family,Office for National Statistics,11/08/2021,Exp - Short-Term Contract & Agency Staff - Full Cost,Business Statistics Transformation,Concept Information Technology Ltd T/A Concept Resourcing,207625,"8,141.26",Information Management Services,Large,Programme Expenditure,,
UK Statistics Family,Office for National Statistics,11/08/2021,Exp - Short-Term Contract & Agency Staff - Full Cost,Prices Division,Concept Information Technology Ltd T/A Concept Resourcing,207625,"4,453.98",Information Management Services,Large,Programme Expenditure,,
UK Statistics Family,Office for National Statistics,11/08/2021,Exp - Short-Term Contract & Agency Staff - Full Cost,Labour Market,Concept Information Technology Ltd T/A Concept Resourcing,207625,"4,029.74",Information Management Services,Large,Programme Expenditure,,
UK Statistics Family,Office for National Statistics,11/08/2021,"ICT Outsourcing, Maintenance And Support",Researcher Support And Data Access ,Equiniti Limited,207629,"144,856.39",Software Licenses,Large,Programme Expenditure,,
UK Statistics Family,Office for National Statistics,11/08/2021,Hosting,IT Operations,Equiniti Limited,207629,"49,459.06",Software Licenses,Large,Programme Expenditure,,
UK Statistics Family,Office for National Statistics,11/08/2021,Exp - Purchase Of Goods/Services - Contractors,Business Architecture,Certes Computing Ltd,207632,"10,504.08",Information Management Services,SME,Programme Expenditure,,
UK Statistics Family,Office for National Statistics,11/08/2021,Exp - Purchase Of Goods/Services - Contractors,Security Advisory,Certes Computing Ltd,207632,"16,652.40",Information Management Services,SME,Programme Expenditure,,
UK Statistics Family,Office for National Statistics,11/08/2021,Exp - Purchase Of Goods/Services - Contractors,Business Architecture,La International,207633,"7,529.06",Information Management Services,SME,Programme Expenditure,,
UK Statistics Family,Office for National Statistics,11/08/2021,Exp - Purchase Of Goods/Services - Contractors,Testing,La International,207633,"15,506.63",Information Management Services,SME,Programme Expenditure,,
UK Statistics Family,Office for National Statistics,11/08/2021,Exp - Purchase Of Goods/Services - Contractors,Testing,La International,207633,"2,936.85",Information Management Services,SME,Programme Expenditure,,
UK Statistics Family,Office for National Statistics,11/08/2021,Exp - Purchase Of Goods/Services - Contractors,HALE,La International,207633,2413.75,Information Management Services,SME,Programme Expenditure,,
UK Statistics Family,Office for National Statistics,11/08/2021,Exp - Purchase Of Goods/Services - Contractors,Sustainability And Inequalities,La International,207633,"2,525.52",Information Management Services,SME,Programme Expenditure,,
UK Statistics Family,Office for National Statistics,11/08/2021,EXP - PURCHASE OF GOODS/SERVICES -  NON IT CONTRACTUAL PAYMENTS,Productivity Research And Professional Development,La International,207633,"3,203.88",Information Management Services,SME,Programme Expenditure,,
UK Statistics Family,Office for National Statistics,11/08/2021,Exp - Purchase Of Goods/Services - Contractors,Data Architecture,La International,207633,"3,524.22",Information Management Services,SME,Programme Expenditure,,
UK Statistics Family,Office for National Statistics,11/08/2021,Exp - Purchase Of Goods/Services - Contractors,Data Architecture,La International,207633,7432.92,Information Management Services,SME,Programme Expenditure,,
UK Statistics Family,Office for National Statistics,11/08/2021,Exp - Purchase Of Goods/Services - Contractors,Data Architecture,La International,207633,"3,524.22",Information Management Services,SME,Programme Expenditure,,
UK Statistics Family,Office for National Statistics,11/08/2021,Exp - Purchase Of Goods/Services - Contractors,CLOUD ARCHITECTURE,La International,207633,8009.64,Information Management Services,SME,Programme Expenditure,,
UK Statistics Family,Office for National Statistics,11/08/2021,Exp - Purchase Of Goods/Services - Contractors,Tech Delivery Legacy Sp,La International,207633,"25,630.74",Information Management Services,SME,Programme Expenditure,,
UK Statistics Family,Office for National Statistics,11/08/2021,Exp - Purchase Of Goods/Services - Contractors,Tech Delivery Legacy Sp,La International,207633,"3,524.22",Information Management Services,SME,Programme Expenditure,,
UK Statistics Family,Office for National Statistics,11/08/2021,Exp - Purchase Of Goods/Services - Contractors,Tech Delivery Data As A Platform,La International,207633,"3,203.88",Information Management Services,SME,Programme Expenditure,,
UK Statistics Family,Office for National Statistics,11/08/2021,Exp - Purchase Of Goods/Services - Contractors,Tech Delivery Data As A Platform,La International,207633,"10,047.24",Information Management Services,SME,Programme Expenditure,,
UK Statistics Family,Office for National Statistics,11/08/2021,Exp - Purchase Of Goods/Services - Contractors,IT Applications,La International,207633,"28,956.49",Information Management Services,SME,Programme Expenditure,,
UK Statistics Family,Office for National Statistics,11/08/2021,Exp - Purchase Of Goods/Services - Contractors,Digital Delivery,La International,207633,8970.84,Information Management Services,SME,Programme Expenditure,,
UK Statistics Family,Office for National Statistics,11/08/2021,Exp - Purchase Of Goods/Services - Contractors,Digital Delivery,La International,207633,"3,844.62",Information Management Services,SME,Programme Expenditure,,
UK Statistics Family,Office for National Statistics,11/08/2021,Exp - Purchase Of Goods/Services - Contractors,Digital Delivery,La International,207633,"14,353.20",Information Management Services,SME,Programme Expenditure,,
UK Statistics Family,Office for National Statistics,11/08/2021,Exp - Purchase Of Goods/Services - Contractors,Digital Delivery,La International,207633,"17,941.50",Information Management Services,SME,Programme Expenditure,,
UK Statistics Family,Office for National Statistics,11/08/2021,Exp - Purchase Of Goods/Services - Contractors,Data As A Service,La International,207633,4004.82,Information Management Services,SME,Programme Expenditure,,
UK Statistics Family,Office for National Statistics,11/08/2021,Exp - Short-Term Contract & Agency Staff - Full Cost,Social Survey Transformation Titchfield,La International,207633,619.5,Information Management Services,SME,Programme Expenditure,,
UK Statistics Family,Office for National Statistics,11/08/2021,Stationery,Lodgecard,Royal Bank of Scotland,207634,"6,188.35",Multiple Procurement Card Purchases  - Stationery ,Large,Programme Expenditure,,
UK Statistics Family,Office for National Statistics,11/08/2021,Other Goods And Services,GPC,Royal Bank of Scotland,207634,"34,860.45",Multiple Procurement Card Purchases - other goods/services  ,Large,Programme Expenditure,,
UK Statistics Family,Office for National Statistics,11/08/2021,Travel And Subsistence,Car Hire,Royal Bank of Scotland,207634,"13,589.63",Multiple Procurement Card Purchases - Vehicle Hire  ,Large,Programme Expenditure,,
UK Statistics Family,Office for National Statistics,11/08/2021,Exp - Short-Term Contract & Agency Staff - Full Cost,Census CCS Data Collection,Malikshaw Interim & Executive,207639,"5,234.23",Information Management Services,SME,Programme Expenditure,,
UK Statistics Family,Office for National Statistics,11/08/2021,Exp - Short-Term Contract & Agency Staff - Full Cost,International Trade And Transactions,Malikshaw Interim & Executive,207639,423.76,Information Management Services,SME,Programme Expenditure,,
UK Statistics Family,Office for National Statistics,11/08/2021,Exp - Short-Term Contract & Agency Staff - Full Cost,International Trade And Transactions,Malikshaw Interim & Executive,207639,"5,061.60",Information Management Services,SME,Programme Expenditure,,
UK Statistics Family,Office for National Statistics,11/08/2021,Exp - Short-Term Contract & Agency Staff - Full Cost,MDR Management,Malikshaw Interim & Executive,207639,"4,884.00",Information Management Services,SME,Programme Expenditure,,
UK Statistics Family,Office for National Statistics,11/08/2021,Exp - Short-Term Contract & Agency Staff - Full Cost,Data Architecture,Malikshaw Interim & Executive,207639,"4,029.52",Information Management Services,SME,Programme Expenditure,,
UK Statistics Family,Office for National Statistics,11/08/2021,Exp - Purchase Of Goods/Services - Contractors,Data Architecture,Malikshaw Interim & Executive,207639,"15,146.47",Information Management Services,SME,Programme Expenditure,,
UK Statistics Family,Office for National Statistics,11/08/2021,Exp - Short-Term Contract & Agency Staff - Full Cost,Social Surveys Division,Malikshaw Interim & Executive,207639,"4,507.22",Information Management Services,SME,Programme Expenditure,,
UK Statistics Family,Office for National Statistics,11/08/2021,Hosting,IT Operations,CTS (Cloud Technology Solutions Ltd),207641,"121,893.43",DST Infrastructure Preparation,Large,Programme Expenditure,,
UK Statistics Family,Office for National Statistics,11/08/2021,Hosting,IT Operations,CTS (Cloud Technology Solutions Ltd),207641,"166,706.22",DST Infrastructure Preparation,Large,Programme Expenditure,,
UK Statistics Family,Office for National Statistics,11/08/2021,EXP - PURCHASE OF GOODS/SERVICES -  NON IT CONTRACTUAL PAYMENTS,Census CCS Data Collection,Adecco UK Limited,207642,"59,744.40",Census People Services Contractual,SME,Programme Expenditure,,
UK Statistics Family,Office for National Statistics,11/08/2021,Exp - Short-Term Contract & Agency Staff - Full Cost,Strategy And Organisational Effectiveness,LA FOSSE ASSOCIATES LIMITED,207648,"11,400.00",Information Management Services,Large,Programme Expenditure,,
UK Statistics Family,Office for National Statistics,11/08/2021,Exp - Purchase Of Goods/Services - Contractors,Strategy And Architecture,LA FOSSE ASSOCIATES LIMITED,207648,"21,000.00",Information Management Services,Large,Programme Expenditure,,
UK Statistics Family,Office for National Statistics,11/08/2021,Exp - Purchase Of Goods/Services - Contractors,Programme Support,SmartSourcing Ltd,207649,"13,784.64",Information Management Services,SME,Programme Expenditure,,
UK Statistics Family,Office for National Statistics,11/08/2021,Exp - Short-Term Contract & Agency Staff - Full Cost,Business Architecture Transformation And Statistical Strategy,SmartSourcing Ltd,207649,"32,362.44",Information Management Services,SME,Programme Expenditure,,
UK Statistics Family,Office for National Statistics,11/08/2021,Exp - Short-Term Contract & Agency Staff - Full Cost,INTEGRATED DATA STRATEGY AND DELIVERY,SmartSourcing Ltd,207649,"1,377.00",Information Management Services,SME,Programme Expenditure,,
UK Statistics Family,Office for National Statistics,11/08/2021,Exp - Purchase Of Goods/Services - IT Contractual Services,CLOUD ARCHITECTURE,SmartSourcing Ltd,207649,"6,473.28",Information Management Services,SME,Programme Expenditure,,
UK Statistics Family,Office for National Statistics,11/08/2021,Exp - Purchase Of Goods/Services - Contractors,CDIO UNGP,SmartSourcing Ltd,207649,"14,984.64",Information Management Services,SME,Programme Expenditure,,
UK Statistics Family,Office for National Statistics,11/08/2021,Exp - Purchase Of Goods/Services - Contractors,Tech Delivery Legacy Sp,SmartSourcing Ltd,207649,"16,183.20",Information Management Services,SME,Programme Expenditure,,
UK Statistics Family,Office for National Statistics,11/08/2021,Exp - Purchase Of Goods/Services - Contractors,Tech Delivery Data As A Platform,SmartSourcing Ltd,207649,"14,400.00",Information Management Services,SME,Programme Expenditure,,
UK Statistics Family,Office for National Statistics,11/08/2021,Exp - Purchase Of Goods/Services - Contractors,IT Applications,SmartSourcing Ltd,207649,"14,384.64",Information Management Services,SME,Programme Expenditure,,
UK Statistics Family,Office for National Statistics,12/08/2021,Exp - Purchase Of Goods/Services - IT Contractual Services,Strategy And Architecture,Ibm United Kingdom Ltd,207815,37403.24,Information Management Services,Large,Programme Expenditure,,
UK Statistics Family,Office for National Statistics,12/08/2021,Buildings Under Construction,Property Newport,Central Roofing Ltd,207820,"35,254.81",Buildings Maintenance,SME,Programme Expenditure,,
UK Statistics Family,Office for National Statistics,12/08/2021,Exp - Purchase Of Goods/Services - Contractors,CLOUD ARCHITECTURE,La International,207821,"12,495.06",Information Management Services,SME,Programme Expenditure,,
UK Statistics Family,Office for National Statistics,12/08/2021,Exp - Purchase Of Goods/Services - Contractors,Digital Delivery,La International,207821,"17,223.84",Information Management Services,SME,Programme Expenditure,,
UK Statistics Family,Office for National Statistics,12/08/2021,Exp - Short-Term Contract & Agency Staff - Full Cost,Social Survey Transformation Titchfield,La International,207821,"3,452.05",Information Management Services,SME,Programme Expenditure,,
UK Statistics Family,Office for National Statistics,12/08/2021,Hosting,IT Operations,Amazon Web Services Inc,207825,"55,560.98",Information Management Services,Large,Programme Expenditure,,
UK Statistics Family,Office for National Statistics,12/08/2021,Exp - Purchase Of Goods/Services - IT Contractual Services,IT Operations,Methods Business & Digital Technology Ltd,207826,"3,000.00",Information Management Services,Large,Programme Expenditure,,
UK Statistics Family,Office for National Statistics,12/08/2021,Exp - Purchase Of Goods/Services - IT Contractual Services,Digital Delivery,Methods Business & Digital Technology Ltd,207826,"64,278.00",Information Management Services,Large,Programme Expenditure,,
UK Statistics Family,Office for National Statistics,12/08/2021,Exp - Purchase Of Goods/Services - IT Contractual Services,Digital Delivery,Methods Business & Digital Technology Ltd,207826,"29,880.00",Information Management Services,Large,Programme Expenditure,,
UK Statistics Family,Office for National Statistics,12/08/2021,Exp - Purchase Of Goods/Services - IT Contractual Services,Digital Delivery,Methods Business & Digital Technology Ltd,207826,"14,625.00",Information Management Services,Large,Programme Expenditure,,
UK Statistics Family,Office for National Statistics,12/08/2021,Exp - Purchase Of Goods/Services - IT Contractual Services,Digital Delivery,Equal Experts UK Ltd,207829,"117,849.60",Information Management Services,Large,Programme Expenditure,,
UK Statistics Family,Office for National Statistics,12/08/2021,Exp - Purchase Of Goods/Services - IT Contractual Services,Tech Delivery Data As A Platform,Insight Direct,207830,"137,270.10",Software Licenses,Large,Programme Expenditure,,
UK Statistics Family,Office for National Statistics,12/08/2021,Fixtures & Fittings At Cost - Additions,Property Newport,Orange box Limited,207832,"136,989.92",Office Furniture,SME,Programme Expenditure,,
UK Statistics Family,Office for National Statistics,12/08/2021,Hosting,IT Operations,CTS (Cloud Technology Solutions Ltd),207833,"87,044.24",DST Infrastructure Preparation,Large,Programme Expenditure,,
UK Statistics Family,Office for National Statistics,12/08/2021,Hosting,IT Operations,CTS (Cloud Technology Solutions Ltd),207833,"154,866.96",DST Infrastructure Preparation,Large,Programme Expenditure,,
UK Statistics Family,Office for National Statistics,12/08/2021,Surveys,Crime Statistics,Kantar UK Ltd,207835,"261,230.20",Statistical Services,Large,Programme Expenditure,,
UK Statistics Family,Office for National Statistics,13/08/2021,Exp - Purchase Of Goods/Services - Contractors,Census CCS Data Collection,Hmrc,207843,"664,355.42",Temporary Staff,Large,Programme Expenditure,,
UK Statistics Family,Office for National Statistics,13/08/2021,Exp - Purchase Of Goods/Services - Contractors,Testing,Certes Computing Ltd,207844,"16,332.60",Information Management Services,SME,Programme Expenditure,,
UK Statistics Family,Office for National Statistics,13/08/2021,Exp - Purchase Of Goods/Services - Contractors,Operations,Certes Computing Ltd,207844,"13,834.80",Information Management Services,SME,Programme Expenditure,,
UK Statistics Family,Office for National Statistics,13/08/2021,Exp - Purchase Of Goods/Services - Contractors,Programme Delivery,Certes Computing Ltd,207844,"14,090.47",Information Management Services,SME,Programme Expenditure,,
UK Statistics Family,Office for National Statistics,13/08/2021,Exp - Purchase Of Goods/Services - Contractors,Security And Information Management Saim,Certes Computing Ltd,207844,"29,142.96",Information Management Services,SME,Programme Expenditure,,
UK Statistics Family,Office for National Statistics,13/08/2021,Exp - Purchase Of Goods/Services - Contractors,Strategy And Architecture,Certes Computing Ltd,207844,"19,215.00",Information Management Services,SME,Programme Expenditure,,
UK Statistics Family,Office for National Statistics,13/08/2021,Exp - Purchase Of Goods/Services - Contractors,Tech Delivery Data As A Platform,Certes Computing Ltd,207844,"8,006.28",Information Management Services,SME,Programme Expenditure,,
UK Statistics Family,Office for National Statistics,13/08/2021,Exp - Purchase Of Goods/Services - Contractors,Digital Delivery,Certes Computing Ltd,207844,"11,836.44",Information Management Services,SME,Programme Expenditure,,
UK Statistics Family,Office for National Statistics,13/08/2021,Exp - Purchase Of Goods/Services - Contractors,Data As A Service,Certes Computing Ltd,207844,"20,175.90",Information Management Services,SME,Programme Expenditure,,
UK Statistics Family,Office for National Statistics,13/08/2021,Hosting,CLOUD ARCHITECTURE,Amazon Web Services Inc,207849,"121,486.75",Information Management Services,Large,Programme Expenditure,,
UK Statistics Family,Office for National Statistics,13/08/2021,Hosting,IT Operations,Amazon Web Services Inc,207849,"45,371.78",Information Management Services,Large,Programme Expenditure,,
UK Statistics Family,Office for National Statistics,13/08/2021,Exp - Permanent UK Staff - PRP Voucher Payments,ONS Corporate Funds,Edenred (UK Group) Limited,207853,"27,650.00",Performance Reward Vouchers,Large,Programme Expenditure,,
UK Statistics Family,Office for National Statistics,13/08/2021,Exp - Purchase Of Goods/Services - Contractors,Data Capability,Parity Resources Limited,207855,"2,790.73",Information Management Services,Large,Programme Expenditure,,
UK Statistics Family,Office for National Statistics,13/08/2021,Exp - Purchase Of Goods/Services - Contractors,Business Architecture,Parity Resources Limited,207855,"2,249.35",Information Management Services,Large,Programme Expenditure,,
UK Statistics Family,Office for National Statistics,13/08/2021,Exp - Purchase Of Goods/Services - Contractors,Testing,Parity Resources Limited,207855,"7,200.00",Information Management Services,Large,Programme Expenditure,,
UK Statistics Family,Office for National Statistics,13/08/2021,Exp - Short-Term Contract & Agency Staff - Full Cost,Census CCS Data Collection,Parity Resources Limited,207855,785.88,Information Management Services,Large,Programme Expenditure,,
UK Statistics Family,Office for National Statistics,13/08/2021,Exp - Short-Term Contract & Agency Staff - Full Cost,Census CCS Data Collection,Parity Resources Limited,207855,754.02,Information Management Services,Large,Programme Expenditure,,
UK Statistics Family,Office for National Statistics,13/08/2021,Exp - Purchase Of Goods/Services - Contractors,Census CCS Data Collection,Parity Resources Limited,207855,"11,880.00",Information Management Services,Large,Programme Expenditure,,
UK Statistics Family,Office for National Statistics,13/08/2021,Exp - Purchase Of Goods/Services - Contractors,Covid Infection Survey,Parity Resources Limited,207855,"2,993.80",Information Management Services,Large,Programme Expenditure,,
UK Statistics Family,Office for National Statistics,13/08/2021,Exp - Short-Term Contract & Agency Staff - Full Cost,Business Architecture Transformation And Statistical Strategy,Parity Resources Limited,207855,"5,006.10",Information Management Services,Large,Programme Expenditure,,
UK Statistics Family,Office for National Statistics,13/08/2021,Exp - Short-Term Contract & Agency Staff - Full Cost,Recruitment ,Parity Resources Limited,207855,"2,637.36",Information Management Services,Large,Programme Expenditure,,
UK Statistics Family,Office for National Statistics,13/08/2021,Exp - Short-Term Contract & Agency Staff - Full Cost,Recruitment ,Parity Resources Limited,207855,"1,465.20",Information Management Services,Large,Programme Expenditure,,
UK Statistics Family,Office for National Statistics,13/08/2021,Exp - Purchase Of Goods/Services - Contractors,Security Advisory,Parity Resources Limited,207855,"25,119.36",Information Management Services,Large,Programme Expenditure,,
UK Statistics Family,Office for National Statistics,13/08/2021,Exp - Short-Term Contract & Agency Staff - Full Cost,Data Architecture,Parity Resources Limited,207855,"2,197.80",Information Management Services,Large,Programme Expenditure,,
UK Statistics Family,Office for National Statistics,13/08/2021,Exp - Purchase Of Goods/Services - Contractors,Data Architecture,Parity Resources Limited,207855,"7,176.96",Information Management Services,Large,Programme Expenditure,,
UK Statistics Family,Office for National Statistics,13/08/2021,Exp - Purchase Of Goods/Services - Contractors,Data Architecture,Parity Resources Limited,207855,"3,592.56",Information Management Services,Large,Programme Expenditure,,
UK Statistics Family,Office for National Statistics,13/08/2021,Exp - Purchase Of Goods/Services - Contractors,IT Applications,Parity Resources Limited,207855,"22,524.12",Information Management Services,Large,Programme Expenditure,,
UK Statistics Family,Office for National Statistics,13/08/2021,Exp - Purchase Of Goods/Services - Contractors,Digital Delivery,Parity Resources Limited,207855,"14,353.92",Information Management Services,Large,Programme Expenditure,,
UK Statistics Family,Office for National Statistics,13/08/2021,Exp - Purchase Of Goods/Services - Contractors,Digital Delivery,Parity Resources Limited,207855,"3,430.50",Information Management Services,Large,Programme Expenditure,,
UK Statistics Family,Office for National Statistics,13/08/2021,Exp - Purchase Of Goods/Services - Contractors,Digital Delivery,Parity Resources Limited,207855,"14,353.92",Information Management Services,Large,Programme Expenditure,,
UK Statistics Family,Office for National Statistics,13/08/2021,Exp - Purchase Of Goods/Services - Contractors,Digital Delivery,Parity Resources Limited,207855,"2,153.09",Information Management Services,Large,Programme Expenditure,,
UK Statistics Family,Office for National Statistics,13/08/2021,Exp - Short-Term Contract & Agency Staff - Full Cost,Social Surveys Division,Parity Resources Limited,207855,"1,326.60",Information Management Services,Large,Programme Expenditure,,
UK Statistics Family,Office for National Statistics,16/08/2021,Exp - Purchase Of Goods/Services - Contractors,Security Advisory,Certes Computing Ltd,207974,"18,318.43",Information Management Services,SME,Programme Expenditure,,
UK Statistics Family,Office for National Statistics,16/08/2021,Exp - Purchase Of Goods/Services - Contractors,Strategy And Architecture,Certes Computing Ltd,207974,"18,733.96",Information Management Services,SME,Programme Expenditure,,
UK Statistics Family,Office for National Statistics,16/08/2021,Exp - Purchase Of Goods/Services - Contractors,Tech Delivery Legacy Sp,Certes Computing Ltd,207974,"17,278.27",Information Management Services,SME,Programme Expenditure,,
UK Statistics Family,Office for National Statistics,16/08/2021,Exp - Purchase Of Goods/Services - Contractors,Data Architecture,SmartSourcing Ltd,207982,"13,200.00",Information Management Services,SME,Programme Expenditure,,
UK Statistics Family,Office for National Statistics,16/08/2021,Exp - Purchase Of Goods/Services - Contractors,Data As A Service,SmartSourcing Ltd,207982,17980.8,Information Management Services,SME,Programme Expenditure,,
UK Statistics Family,Office for National Statistics,17/08/2021,Exp - Purchase Of Goods/Services - Contractors,Security Advisory,Certes Computing Ltd,208109,"18,318.43",Information Management Services,SME,Programme Expenditure,,
UK Statistics Family,Office for National Statistics,17/08/2021,Exp - Purchase Of Goods/Services - Contractors,CLOUD ARCHITECTURE,Certes Computing Ltd,208109,"19,215.00",Information Management Services,SME,Programme Expenditure,,
UK Statistics Family,Office for National Statistics,17/08/2021,Exp - Purchase Of Goods/Services - Contractors,Digital Delivery,Certes Computing Ltd,208109,"10,798.92",Information Management Services,SME,Programme Expenditure,,
UK Statistics Family,Office for National Statistics,17/08/2021,Exp - Purchase Of Goods/Services - Contractors,Digital Delivery,Certes Computing Ltd,208109,"15,147.96",Information Management Services,SME,Programme Expenditure,,
UK Statistics Family,Office for National Statistics,17/08/2021,Exp - Purchase Of Goods/Services - Contractors,Testing,La International,208110,"17,872.13",Information Management Services,SME,Programme Expenditure,,
UK Statistics Family,Office for National Statistics,17/08/2021,Exp - Purchase Of Goods/Services - Contractors,Testing,La International,208110,"2,936.85",Information Management Services,SME,Programme Expenditure,,
UK Statistics Family,Office for National Statistics,17/08/2021,Exp - Purchase Of Goods/Services - Contractors,Data Architecture,La International,208110,"3,075.70",Information Management Services,SME,Programme Expenditure,,
UK Statistics Family,Office for National Statistics,17/08/2021,Exp - Purchase Of Goods/Services - Contractors,CLOUD ARCHITECTURE,La International,208110,"3,844.62",Information Management Services,SME,Programme Expenditure,,
UK Statistics Family,Office for National Statistics,17/08/2021,Exp - Purchase Of Goods/Services - Contractors,Tech Delivery Legacy Sp,La International,208110,"4,485.42",Information Management Services,SME,Programme Expenditure,,
UK Statistics Family,Office for National Statistics,17/08/2021,Exp - Purchase Of Goods/Services - Contractors,Tech Delivery Data As A Platform,La International,208110,"3,203.88",Information Management Services,SME,Programme Expenditure,,
UK Statistics Family,Office for National Statistics,17/08/2021,Exp - Purchase Of Goods/Services - Contractors,Tech Delivery Data As A Platform,La International,208110,"7,176.60",Information Management Services,SME,Programme Expenditure,,
UK Statistics Family,Office for National Statistics,17/08/2021,Exp - Purchase Of Goods/Services - Contractors,Tech Delivery Data As A Platform,La International,208110,"2,870.64",Information Management Services,SME,Programme Expenditure,,
UK Statistics Family,Office for National Statistics,17/08/2021,Exp - Purchase Of Goods/Services - Contractors,Digital Delivery,La International,208110,3588.3,Information Management Services,SME,Programme Expenditure,,
UK Statistics Family,Office for National Statistics,17/08/2021,Exp - Short-Term Contract & Agency Staff - Full Cost,Census CCS Data Collection,Talent International,208114,"1,260.00",Information Management Services,SME,Programme Expenditure,,
UK Statistics Family,Office for National Statistics,17/08/2021,Exp - Short-Term Contract & Agency Staff - Full Cost,CENSUS PARTNERSHIPS AND ENGAGEMENT,Talent International,208114,"5,296.92",Information Management Services,SME,Programme Expenditure,,
UK Statistics Family,Office for National Statistics,17/08/2021,Exp - Purchase Of Goods/Services - Contractors,Digital Publishing,Talent International,208114,"17,970.00",Information Management Services,SME,Programme Expenditure,,
UK Statistics Family,Office for National Statistics,17/08/2021,Exp - Purchase Of Goods/Services - Contractors,CLOUD ARCHITECTURE,Talent International,208114,17999.7,Information Management Services,SME,Programme Expenditure,,
UK Statistics Family,Office for National Statistics,17/08/2021,Exp - Purchase Of Goods/Services - Contractors,Tech Delivery Legacy Sp,Talent International,208114,"19,500.00",Information Management Services,SME,Programme Expenditure,,
UK Statistics Family,Office for National Statistics,17/08/2021,Exp - Purchase Of Goods/Services - Contractors,IT Applications,Talent International,208114,"35,939.70",Information Management Services,SME,Programme Expenditure,,
UK Statistics Family,Office for National Statistics,17/08/2021,Exp - Short-Term Contract & Agency Staff - Full Cost,Social Surveys Division,Talent International,208114,"3,058.57",Information Management Services,SME,Programme Expenditure,,
UK Statistics Family,Office for National Statistics,18/08/2021,Exp - Purchase Of Goods/Services - IT Contractual Services,IT Operations,E Synergy Solutions,208126,"80,898.00",Information Management Services,SME,Programme Expenditure,,
UK Statistics Family,Office for National Statistics,18/08/2021,FM Contract Payments,Vinci Payments,Vinci Construction UK Limited,208127,113191.96,Facilities Mangement Services,Large,Programme Expenditure,,
UK Statistics Family,Office for National Statistics,18/08/2021,Exp - Short-Term Contract & Agency Staff - Full Cost,Business Architecture,Talent International,208139,"1,931.00",Information Management Services,SME,Programme Expenditure,,
UK Statistics Family,Office for National Statistics,18/08/2021,Exp - Short-Term Contract & Agency Staff - Full Cost,Census CCS Data Collection,Talent International,208139,"1,465.01",Information Management Services,SME,Programme Expenditure,,
UK Statistics Family,Office for National Statistics,18/08/2021,Exp - Purchase Of Goods/Services - Contractors,Covid Infection Survey,Talent International,208139,"2,995.00",Information Management Services,SME,Programme Expenditure,,
UK Statistics Family,Office for National Statistics,18/08/2021,Exp - Short-Term Contract & Agency Staff - Full Cost,HALE,Talent International,208139,"1,570.87",Information Management Services,SME,Programme Expenditure,,
UK Statistics Family,Office for National Statistics,18/08/2021,Exp - Short-Term Contract & Agency Staff - Full Cost,Data Architecture,Talent International,208139,"1,474.96",Information Management Services,SME,Programme Expenditure,,
UK Statistics Family,Office for National Statistics,18/08/2021,Exp - Purchase Of Goods/Services - Contractors,Tech Delivery Data As A Platform,Talent International,208139,"17,999.70",Information Management Services,SME,Programme Expenditure,,
UK Statistics Family,Office for National Statistics,18/08/2021,Exp - Purchase Of Goods/Services - Contractors,Tech Delivery Next Gen IT And Infrastructure,Talent International,208139,"17,999.70",Information Management Services,SME,Programme Expenditure,,
UK Statistics Family,Office for National Statistics,18/08/2021,Exp - Purchase Of Goods/Services - IT Contractual Services,Tech Delivery Next Gen IT And Infrastructure,Diegesis Limited,208141,"28,500.00",Information Management Services,Large,Programme Expenditure,,
UK Statistics Family,Office for National Statistics,19/08/2021,Exp - Purchase Of Goods/Services - Contractors,Census CCS Data Collection,Hmrc,208340,"391,691.70",Temporary Staff,Large,Programme Expenditure,,
UK Statistics Family,Office for National Statistics,19/08/2021,EXP - PURCHASE OF GOODS/SERVICES -  NON IT CONTRACTUAL PAYMENTS,Data Collection Service,Serco Ltd,208348,"154,166.88",Census Contact Centre,Large,Programme Expenditure,,
UK Statistics Family,Office for National Statistics,19/08/2021,Telecoms,IT Operations,Freedom Communications (UK) Ltd,208350,"60,910.22",Software Licenses,Large,Programme Expenditure,,
UK Statistics Family,Office for National Statistics,19/08/2021,Fixtures & Fittings At Cost - Additions,Property Titchfield,Orange box Limited,208356,"188,753.76",Office Furniture,SME,Programme Expenditure,,
UK Statistics Family,Office for National Statistics,19/08/2021,Telecoms,IT Operations,Freedom Communications (UK) Ltd,208357,"114,392.03",Software Licenses,Large,Programme Expenditure,,
UK Statistics Family,Office for National Statistics,20/08/2021,Hosting,IT Operations,Crown Hosting Data Centres Limited,208393,"38,380.14",Information Management Services,SME,Programme Expenditure,,
UK Statistics Family,Office for National Statistics,20/08/2021,Hospitality,Property Services,BaxterStorey,208402,"25,514.76",Caterring Services,Large,Programme Expenditure,,
UK Statistics Family,Office for National Statistics,20/08/2021,Exp - Purchase Of Goods/Services - IT Contractual Services,2023 CENSUS DATA TRANSFORMATION,CTS (Cloud Technology Solutions Ltd),208404,"123,648.00",DST Infrastructure Preparation,Large,Programme Expenditure,,
UK Statistics Family,Office for National Statistics,20/08/2021,EXP - PURCHASE OF GOODS/SERVICES -  NON IT CONTRACTUAL PAYMENTS,Data Collection Service,HH Associates Ltd,208405,"30,692.47",Print and Post Services,SME,Programme Expenditure,,
UK Statistics Family,Office for National Statistics,20/08/2021,Exp - Purchase Of Goods/Services - Contractors,Data Architecture,Talent International,208408,"29,400.00",Information Management Services,SME,Programme Expenditure,,
UK Statistics Family,Office for National Statistics,20/08/2021,Exp - Purchase Of Goods/Services - Contractors,CDIO UNGP,Talent International,208408,"36,168.00",Information Management Services,SME,Programme Expenditure,,
UK Statistics Family,Office for National Statistics,20/08/2021,Exp - Purchase Of Goods/Services - Contractors,Data Science Campus,Talent International,208408,"9,180.00",Information Management Services,SME,Programme Expenditure,,
UK Statistics Family,Office for National Statistics,20/08/2021,Exp - Purchase Of Goods/Services - Contractors,Commercial Services,Gardiner & Theobald LLP,208411,"31,010.00",Temporary Staff,Large,Programme Expenditure,,
UK Statistics Family,Office for National Statistics,20/08/2021,Exp - Purchase Of Goods/Services - Contractors,Commercial Services,Gardiner & Theobald LLP,208411,99550,Temporary Staff,Large,Programme Expenditure,,
UK Statistics Family,Office for National Statistics,23/08/2021,Exp - Purchase Of Goods And Services Consultants,Consultancy Management,Deloitte,208516,"174,200.40",Consultancy,Large,Programme Expenditure,,
UK Statistics Family,Office for National Statistics,23/08/2021,"ICT Outsourcing, Maintenance And Support",Senior Management Team Design,Totalmobile Ltd,208521,130176,Software Licenses,SME,Programme Expenditure,,
UK Statistics Family,Office for National Statistics,23/08/2021,"ICT Outsourcing, Maintenance And Support",Consultancy Management,Totalmobile Ltd,208521,"48,000.00",Software Licenses,SME,Programme Expenditure,,
UK Statistics Family,Office for National Statistics,23/08/2021,EXP - PURCHASE OF GOODS/SERVICES -  NON IT CONTRACTUAL PAYMENTS,Census CCS Data Collection,Adecco UK Limited,208523,"59,744.40",Census People Services Contractual,SME,Programme Expenditure,,
UK Statistics Family,Office for National Statistics,23/08/2021,Exp - Purchase Of Goods/Services - Contractors,Business Architecture,Parity Resources Limited,208528,"4,049.87",Information Management Services,Large,Programme Expenditure,,
UK Statistics Family,Office for National Statistics,23/08/2021,Exp - Purchase Of Goods/Services - Contractors,Business Architecture,Parity Resources Limited,208528,"2,249.35",Information Management Services,Large,Programme Expenditure,,
UK Statistics Family,Office for National Statistics,23/08/2021,Exp - Purchase Of Goods/Services - Contractors,Testing,Parity Resources Limited,208528,"17,686.08",Information Management Services,Large,Programme Expenditure,,
UK Statistics Family,Office for National Statistics,23/08/2021,Exp - Short-Term Contract & Agency Staff - Full Cost,Census CCS Data Collection,Parity Resources Limited,208528,785.88,Information Management Services,Large,Programme Expenditure,,
UK Statistics Family,Office for National Statistics,23/08/2021,Exp - Short-Term Contract & Agency Staff - Full Cost,Census CCS Data Collection,Parity Resources Limited,208528,849.6,Information Management Services,Large,Programme Expenditure,,
UK Statistics Family,Office for National Statistics,23/08/2021,Exp - Purchase Of Goods/Services - Contractors,Analysis Microdata And Engagement,Parity Resources Limited,208528,8285.46,Information Management Services,Large,Programme Expenditure,,
UK Statistics Family,Office for National Statistics,23/08/2021,Exp - Short-Term Contract & Agency Staff - Full Cost,Recruitment ,Parity Resources Limited,208528,"1,465.20",Information Management Services,Large,Programme Expenditure,,
UK Statistics Family,Office for National Statistics,23/08/2021,Exp - Short-Term Contract & Agency Staff - Full Cost,Recruitment ,Parity Resources Limited,208528,"1,465.20",Information Management Services,Large,Programme Expenditure,,
UK Statistics Family,Office for National Statistics,23/08/2021,Exp - Purchase Of Goods/Services - Contractors,Data Architecture,Parity Resources Limited,208528,"7,005.06",Information Management Services,Large,Programme Expenditure,,
UK Statistics Family,Office for National Statistics,23/08/2021,Exp - Purchase Of Goods/Services - Contractors,IT Applications,Parity Resources Limited,208528,"3,588.48",Information Management Services,Large,Programme Expenditure,,
UK Statistics Family,Office for National Statistics,23/08/2021,Exp - Purchase Of Goods/Services - Contractors,Digital Delivery,Parity Resources Limited,208528,"3,430.50",Information Management Services,Large,Programme Expenditure,,
UK Statistics Family,Office for National Statistics,24/08/2021,Exp - Purchase Of Goods/Services - IT Contractual Services,Strategy And Architecture,E Synergy Solutions,208632,"19,800.00",Information Management Services,SME,Programme Expenditure,,
UK Statistics Family,Office for National Statistics,24/08/2021,Exp - Purchase Of Goods/Services - IT Contractual Services,Strategy And Architecture,E Synergy Solutions,208632,15840,Information Management Services,SME,Programme Expenditure,,
UK Statistics Family,Office for National Statistics,24/08/2021,Exp - Purchase Of Goods/Services - IT Contractual Services,Tech Delivery Legacy Sp,E Synergy Solutions,208632,"86,724.00",Information Management Services,SME,Programme Expenditure,,
UK Statistics Family,Office for National Statistics,24/08/2021,Exp - Purchase Of Goods/Services - IT Contractual Services,Tech Delivery Next Gen IT And Infrastructure,E Synergy Solutions,208632,"12,960.00",Information Management Services,SME,Programme Expenditure,,
UK Statistics Family,Office for National Statistics,24/08/2021,FM Contract Payments,Vinci Payments,Vinci Construction UK Limited,208633,"665,695.94",Facilities Mangement Services,Large,Programme Expenditure,,
UK Statistics Family,Office for National Statistics,24/08/2021,Exp - Purchase Of Goods/Services - Contractors,Data Architecture,Malikshaw Interim & Executive,208641,"31,680.00",Information Management Services,SME,Programme Expenditure,,
UK Statistics Family,Office for National Statistics,24/08/2021,Exp - Purchase Of Goods/Services - IT Contractual Services,IT Applications,Diegesis Limited,208645,"179,490.00",Information Management Services,Large,Programme Expenditure,,
UK Statistics Family,Office for National Statistics,25/08/2021,Telecoms,Digital Delivery,Xma Limited,208652,"471,292.20",Costs Associated with Mobile Devices,Large,Programme Expenditure,,
UK Statistics Family,Office for National Statistics,25/08/2021,Print & Post,Social Survey Transformation Newport,APS Group,208658,"578,765.52",Print and Post Services,Large,Programme Expenditure,,
UK Statistics Family,Office for National Statistics,25/08/2021,EXP - PURCHASE OF GOODS/SERVICES -  NON IT CONTRACTUAL PAYMENTS,Census CCS Data Collection,Granby Marketing Services Ltd,208659,"150,937.55",Stoarage and Distribution Services,Large,Programme Expenditure,,
UK Statistics Family,Office for National Statistics,25/08/2021,Exp - Purchase Of Goods/Services - Contractors,Covid Infection Survey,Talent International,208661,"3,594.00",Information Management Services,SME,Programme Expenditure,,
UK Statistics Family,Office for National Statistics,25/08/2021,Exp - Purchase Of Goods/Services - Contractors,Digital Publishing,Talent International,208661,"16,800.00",Information Management Services,SME,Programme Expenditure,,
UK Statistics Family,Office for National Statistics,25/08/2021,Exp - Purchase Of Goods/Services - Contractors,Digital Publishing,Talent International,208661,"16,128.00",Information Management Services,SME,Programme Expenditure,,
UK Statistics Family,Office for National Statistics,25/08/2021,Exp - Purchase Of Goods/Services - Contractors,CDIO UNGP,Talent International,208661,"15,618.00",Information Management Services,SME,Programme Expenditure,,
UK Statistics Family,Office for National Statistics,25/08/2021,Exp - Purchase Of Goods/Services - Contractors,Tech Delivery Legacy Sp,Talent International,208661,"46,800.00",Information Management Services,SME,Programme Expenditure,,
UK Statistics Family,Office for National Statistics,25/08/2021,Exp - Purchase Of Goods/Services - Contractors,Business Architecture,LA FOSSE ASSOCIATES LIMITED,208662,"6,900.00",Information Management Services,Large,Programme Expenditure,,
UK Statistics Family,Office for National Statistics,25/08/2021,Exp - Purchase Of Goods And Services Consultants,Social Survey Transformation Newport,LA FOSSE ASSOCIATES LIMITED,208662,"38,760.00",Information Management Services,Large,Programme Expenditure,,
UK Statistics Family,Office for National Statistics,25/08/2021,Fixtures & Fittings At Cost - Additions,Property Newport,Orange box Limited,208666,"72,910.66",Office Furniture,SME,Programme Expenditure,,
UK Statistics Family,Office for National Statistics,26/08/2021,Exp - Purchase Of Goods/Services - Contractors,Business Architecture,La International,208841,7763.97,Information Management Services,SME,Programme Expenditure,,
UK Statistics Family,Office for National Statistics,26/08/2021,Exp - Purchase Of Goods/Services - Contractors,Testing,La International,208841,13712.44,Information Management Services,SME,Programme Expenditure,,
UK Statistics Family,Office for National Statistics,26/08/2021,Exp - Purchase Of Goods/Services - Contractors,Testing,La International,208841,"2,936.85",Information Management Services,SME,Programme Expenditure,,
UK Statistics Family,Office for National Statistics,26/08/2021,Exp - Purchase Of Goods/Services - Contractors,Data Architecture,La International,208841,"3,588.30",Information Management Services,SME,Programme Expenditure,,
UK Statistics Family,Office for National Statistics,26/08/2021,Print & Post,Ask Business Services,APS Group,208847,246.6,Print and Post Services,Large,Programme Expenditure,,
UK Statistics Family,Office for National Statistics,26/08/2021,Print & Post,Survey Processing Centre,APS Group,208847,"7,526.40",Print and Post Services,Large,Programme Expenditure,,
UK Statistics Family,Office for National Statistics,26/08/2021,Print & Post,Social Survey Transformation Newport,APS Group,208847,"55,561.11",Print and Post Services,Large,Programme Expenditure,,
UK Statistics Family,Office for National Statistics,26/08/2021,Print & Post,Social Survey Transformation Newport,APS Group,208847,204.86,Print and Post Services,Large,Programme Expenditure,,
UK Statistics Family,Office for National Statistics,26/08/2021,Exp - Purchase Of Goods And Services Consultants,Digital Publishing,Methods Business & Digital Technology Ltd,208852,"96,156.00",Information Management Services,Large,Programme Expenditure,,
UK Statistics Family,Office for National Statistics,26/08/2021,Exp - Purchase Of Goods/Services - IT Contractual Services,Digital Publishing,Armakuni Ltd,208856,"28,324.80",Information Management Services,SME,Programme Expenditure,,
UK Statistics Family,Office for National Statistics,12/08/2021,Exp - Purchase Of Goods/Services - Incentive Payments,Covid Infection Survey,Sodexo Motivation Solutions U.K. ltd,30002912,1905457.18,Survey Response Incentive Vouchers,Large,Programme Expenditure,,
UK Statistics Family,Office for National Statistics,13/08/2021,Exp - Purchase Of Goods/Services - Incentive Payments,Covid Infection Survey,Sodexo Motivation Solutions U.K. ltd,30002913,"668,241.03",Survey Response Incentive Vouchers,Large,Programme Expenditure,,
UK Statistics Family,Office for National Statistics,17/08/2021,Surveys,Covid Infection Survey,IQVIA Limited,30002916,"4,471,182.94",Statistical Services,Large,Programme Expenditure,,
UK Statistics Family,Office for National Statistics,17/08/2021,Exp - Purchase Of Goods/Services - Incentive Payments,Covid Infection Survey,Sodexo Motivation Solutions U.K. ltd,30002920,"159,739.49",Survey Response Incentive Vouchers,Large,Programme Expenditure,,
UK Statistics Family,Office for National Statistics,19/08/2021,Exp - Purchase Of Goods/Services - Incentive Payments,Covid Infection Survey,Sodexo Motivation Solutions U.K. ltd,30002924,"1,695,568.22",Survey Response Incentive Vouchers,Large,Programme Expenditure,,
UK Statistics Family,Office for National Statistics,23/08/2021,Exp - Purchase Of Goods/Services - Incentive Payments,Covid Infection Survey,Sodexo Motivation Solutions U.K. ltd,30002956,118480.8,Survey Response Incentive Vouchers,Large,Programme Expenditure,,
UK Statistics Family,Office for National Statistics,23/08/2021,Surveys,Covid Infection Survey,IQVIA Limited,30002957,"21,120,000.00",Statistical Services,Large,Programme Expenditure,,
UK Statistics Family,Office for National Statistics,25/08/2021,Exp - Purchase Of Goods/Services - Incentive Payments,Covid Infection Survey,Sodexo Motivation Solutions U.K. ltd,30002961,"107,340.35",Survey Response Incentive Vouchers,Large,Programme Expenditure,,
UK Statistics Family,Office for National Statistics,25/08/2021,Surveys,Covid Infection Survey,IQVIA Limited,30002962,"372,415.38",Statistical Services,Large,Programme Expenditure,,
UK Statistics Family,Office for National Statistics,27/08/2021,Exp - Purchase Of Goods/Services - Incentive Payments,Covid Infection Survey,Sodexo Motivation Solutions U.K. ltd,30002964,"1,643,533.92",Survey Response Incentive Vouchers,Large,Programme Expenditure,,
UK Statistics Family,Office for National Statistics,27/08/2021,Exp - Purchase Of Goods/Services - Incentive Payments,Covid Infection Survey,Sodexo Motivation Solutions U.K. ltd,30002965,"57,480.00",Survey Response Incentive Vouchers,Large,Programme Expenditure,,
UK Statistics Family,Office for National Statistics,31/08/2021,EXP - PURCHASE OF GOODS/SERVICES -  NON IT CONTRACTUAL PAYMENTS,Census CCS Data Collection,Adecco UK Limited,30002966,2327074.27,Census People Services Contractual,SME,Programme Expenditure,,
UK Statistics Family,Office for National Statistics,31/08/2021,Exp - Purchase Of Goods/Services - IT Contractual Services,Tech Delivery Legacy Sp,Armakuni Ltd,30002970,25080,Information Management Services,SME,Programme Expenditure,,
UK Statistics Family,Office for National Statistics,31/08/2021,"ICT Outsourcing, Maintenance And Support",IT Operations,CTS (Cloud Technology Solutions Ltd),30002971,"33,111.30",DST Infrastructure Preparation,Large,Programme Expenditure,,
UK Statistics Family,Office for National Statistics,31/08/2021,End User Software And Hardware,Census CCS Data Collection,Cdw Limited,30002972,1992,Software Licenses,Large,Programme Expenditure,,
UK Statistics Family,Office for National Statistics,31/08/2021,End User Software And Hardware,Census CCS Data Collection,Cdw Limited,30002972,996,Software Licenses,Large,Programme Expenditure,,
UK Statistics Family,Office for National Statistics,31/08/2021,Telecoms,IT Operations,Cdw Limited,30002972,79.2,Software Licenses,Large,Programme Expenditure,,
UK Statistics Family,Office for National Statistics,31/08/2021,End User Software And Hardware,IT Operations,Cdw Limited,30002972,"33,963.60",Software Licenses,Large,Programme Expenditure,,
UK Statistics Family,Office for National Statistics,31/08/2021,FM Contract Payments,Property London,Tandem Property Asset Management LLP - DG Lease Limited Service Charge Account,30002973,"55,008.00",Property Rental,Large,Programme Expenditure,,
,,,,,,,"55,178,508.88",,,
